[Event "Titled Tuesday Blitz February 21 Late 2023"]
[White "Stoyanov, Tsvetan"]
[Black "Guzman, Christopher"]
[WhiteFideId "2917173"]
[BlackFideId "6405096"]
[WhiteElo "2454"]
[BlackElo "2271"]
[Result "0-1"]
[Round "10"]
[TimeControl "180+2"]
[Date "2023.02.21"]
[WhiteClock "0:00:02"]
[BlackClock "0:01:05"]

1. e4 {[%clk 0:03:00]}  c6 {[%clk 0:02:59]} 2. c4 {[%clk 0:03:00]}  d5 {[%clk 0:03:00]} 3. cxd5 {[%clk 0:03:01]}  cxd5 {[%clk 0:03:00]} 4. exd5 {[%clk 0:03:02]}  Qxd5 {[%clk 0:02:58]} 5. Nc3 {[%clk 0:03:02]}  Qd8 {[%clk 0:02:58]} 6. Bc4 {[%clk 0:03:02]}  Nf6 {[%clk 0:02:58]} 7. Nf3 {[%clk 0:03:02]}  e6 {[%clk 0:02:59]} 8. d4 {[%clk 0:03:03]}  Be7 {[%clk 0:02:59]} 9. O-O {[%clk 0:03:03]}  O-O {[%clk 0:02:59]} 10. Re1 {[%clk 0:03:03]}  Nc6 {[%clk 0:02:59]} 11. a3 {[%clk 0:03:00]}  Nd5 {[%clk 0:02:58]} 12. Nxd5 {[%clk 0:02:56]}  exd5 {[%clk 0:02:58]} 13. Bd3 {[%clk 0:02:56]}  Bf6 {[%clk 0:02:56]} 14. h3 {[%clk 0:02:52]}  Be6 {[%clk 0:02:56]} 15. Bc2 {[%clk 0:02:36]}  Rc8 {[%clk 0:02:54]} 16. Qd3 {[%clk 0:02:25]}  g6 {[%clk 0:02:54]} 17. Qd1 {[%clk 0:02:25]}  Re8 {[%clk 0:02:54]} 18. Be3 {[%clk 0:02:16]}  Qb6 {[%clk 0:02:54]} 19. b4 {[%clk 0:02:16]}  a5 {[%clk 0:02:53]} 20. Rb1 {[%clk 0:02:07]}  axb4 {[%clk 0:02:53]} 21. axb4 {[%clk 0:02:08]}  Na7 {[%clk 0:02:47]} 22. Ba4 {[%clk 0:02:07]}  Red8 {[%clk 0:02:42]} 23. Qd2 {[%clk 0:01:54]}  Nb5 {[%clk 0:02:41]} 24. Bxb5 {[%clk 0:01:45]}  Qxb5 {[%clk 0:02:41]} 25. Bg5 {[%clk 0:01:46]}  Bxg5 {[%clk 0:02:36]} 26. Qxg5 {[%clk 0:01:46]}  Qd3 {[%clk 0:02:26]} 27. Qh6 {[%clk 0:01:38]}  Rc6 {[%clk 0:02:05]} 28. Ng5 {[%clk 0:01:28]}  Qf5 {[%clk 0:02:01]} 29. Qxh7+ {[%clk 0:01:16]}  Kf8 {[%clk 0:02:01]} 30. Qh4 {[%clk 0:01:16]}  Re8 {[%clk 0:01:56]} 31. Ra1 {[%clk 0:01:04]}  Kg7 {[%clk 0:01:55]} 32. Qh7+ {[%clk 0:01:00]}  Kf8 {[%clk 0:01:55]} 33. Re5 {[%clk 0:00:47]}  Qf6 {[%clk 0:01:52]} 34. Rae1 {[%clk 0:00:39]}  Rc2 {[%clk 0:01:52]} 35. Qh6+ {[%clk 0:00:36]}  Kg8 {[%clk 0:01:51]} 36. Qh7+ {[%clk 0:00:36]}  Kf8 {[%clk 0:01:51]} 37. Qh4 {[%clk 0:00:37]}  Kg7 {[%clk 0:01:48]} 38. R5e3 {[%clk 0:00:24]}  Rh8 {[%clk 0:01:33]} 39. Nxe6+ {[%clk 0:00:23]}  fxe6 {[%clk 0:01:25]} 40. Qxf6+ {[%clk 0:00:23]}  Kxf6 {[%clk 0:01:25]} 41. Rxe6+ {[%clk 0:00:24]}  Kf7 {[%clk 0:01:25]} 42. Re7+ {[%clk 0:00:23]}  Kf6 {[%clk 0:01:25]} 43. Rxb7 {[%clk 0:00:20]}  Ra8 {[%clk 0:01:22]} 44. Rb6+ {[%clk 0:00:20]}  Kf7 {[%clk 0:01:22]} 45. Rd6 {[%clk 0:00:13]}  Raa2 {[%clk 0:01:20]} 46. Rxd5 {[%clk 0:00:13]}  Rab2 {[%clk 0:01:20]} 47. b5 {[%clk 0:00:13]}  Rd2 {[%clk 0:01:18]} 48. Rd7+ {[%clk 0:00:11]}  Kf6 {[%clk 0:01:18]} 49. Rd6+ {[%clk 0:00:11]}  Kg7 {[%clk 0:01:17]} 50. b6 {[%clk 0:00:11]}  Rxf2 {[%clk 0:01:16]} 51. Re7+ {[%clk 0:00:07]}  Kf8 {[%clk 0:01:08]} 52. Ree6 {[%clk 0:00:06]}  Rxg2+ {[%clk 0:01:08]} 53. Kf1 {[%clk 0:00:06]}  Rbf2+ {[%clk 0:01:08]} 54. Ke1 {[%clk 0:00:06]}  Rb2 {[%clk 0:01:07]} 55. Rf6+ {[%clk 0:00:05]}  Kg7 {[%clk 0:01:07]} 56. Kf1 {[%clk 0:00:03]}  Rh2 {[%clk 0:01:06]} 57. Kg1 {[%clk 0:00:03]}  Rhc2 {[%clk 0:01:06]} 58. Rxg6+ {[%clk 0:00:02]}  Kf7 {[%clk 0:01:06]} 59. Rgf6+ {[%clk 0:00:03]}  Kg7 {[%clk 0:01:06]} 60. Kh1 {[%clk 0:00:02]}  Rc1+ {[%clk 0:01:05]} 0-1


[Site "https://www.chess.com"]

[Event "Titled Tuesday Blitz February 21 Late 2023"]
[White "Koutlas, Nikolaos"]
[Black "Salimova, Nurgyul"]
[WhiteFideId "25827138"]
[BlackFideId "2915138"]
[WhiteElo "2341"]
[BlackElo "2391"]
[Result "0-1"]
[Round "10"]
[TimeControl "180+2"]
[Date "2023.02.21"]
[WhiteClock "0:00:03"]
[BlackClock "0:00:04"]

1. c4 {[%clk 0:02:59]}  e6 {[%clk 0:02:59]} 2. Nc3 {[%clk 0:02:57]}  d5 {[%clk 0:03:00]} 3. Nf3 {[%clk 0:02:52]}  Nf6 {[%clk 0:02:59]} 4. e3 {[%clk 0:02:52]}  Bd6 {[%clk 0:02:44]} 5. d4 {[%clk 0:02:51]}  O-O {[%clk 0:02:42]} 6. Bd3 {[%clk 0:02:50]}  dxc4 {[%clk 0:02:39]} 7. Bxc4 {[%clk 0:02:50]}  c5 {[%clk 0:02:38]} 8. O-O {[%clk 0:02:50]}  cxd4 {[%clk 0:02:18]} 9. Nxd4 {[%clk 0:02:48]}  Bxh2+ {[%clk 0:02:10]} 10. Kh1 {[%clk 0:02:22]}  Be5 {[%clk 0:02:10]} 11. Nf3 {[%clk 0:02:20]}  Qc7 {[%clk 0:01:57]} 12. Nxe5 {[%clk 0:02:16]}  Qxe5 {[%clk 0:01:57]} 13. Qf3 {[%clk 0:01:35]}  Nc6 {[%clk 0:01:51]} 14. Rd1 {[%clk 0:01:31]}  Qc5 {[%clk 0:01:48]} 15. Bb3 {[%clk 0:01:24]}  e5 {[%clk 0:01:46]} 16. Nd5 {[%clk 0:01:19]}  Nxd5 {[%clk 0:01:39]} 17. Rxd5 {[%clk 0:01:19]}  Qe7 {[%clk 0:01:39]} 18. Qg3 {[%clk 0:01:18]}  Be6 {[%clk 0:01:36]} 19. Rb5 {[%clk 0:01:14]}  a6 {[%clk 0:01:30]} 20. Rb6 {[%clk 0:01:03]}  Qc7 {[%clk 0:01:29]} 21. Bxe6 {[%clk 0:01:00]}  Qxb6 {[%clk 0:01:29]} 22. Bf5 {[%clk 0:00:58]}  Rad8 {[%clk 0:01:26]} 23. Qg4 {[%clk 0:00:46]}  g6 {[%clk 0:01:19]} 24. e4 {[%clk 0:00:45]}  Qxf2 {[%clk 0:01:00]} 25. Bh6 {[%clk 0:00:34]}  Rfe8 {[%clk 0:00:48]} 26. Bd7 {[%clk 0:00:34]}  Rxd7 {[%clk 0:00:28]} 27. Qxd7 {[%clk 0:00:33]}  Qh4+ {[%clk 0:00:29]} 28. Qh3 {[%clk 0:00:24]}  Qxh3+ {[%clk 0:00:23]} 29. gxh3 {[%clk 0:00:25]}  f6 {[%clk 0:00:21]} 30. Kg2 {[%clk 0:00:22]}  Rd8 {[%clk 0:00:20]} 31. Kf2 {[%clk 0:00:22]}  Kf7 {[%clk 0:00:20]} 32. Be3 {[%clk 0:00:21]}  Ke6 {[%clk 0:00:19]} 33. Rc1 {[%clk 0:00:20]}  f5 {[%clk 0:00:18]} 34. exf5+ {[%clk 0:00:14]}  gxf5 {[%clk 0:00:19]} 35. Bb6 {[%clk 0:00:11]}  Rd2+ {[%clk 0:00:18]} 36. Ke3 {[%clk 0:00:12]}  Rxb2 {[%clk 0:00:18]} 37. Bc5 {[%clk 0:00:13]}  Rxa2 {[%clk 0:00:17]} 38. Rd1 {[%clk 0:00:13]}  f4+ {[%clk 0:00:15]} 39. Kf3 {[%clk 0:00:13]}  Kf5 {[%clk 0:00:13]} 40. Rd5 {[%clk 0:00:09]}  Rh2 {[%clk 0:00:10]} 41. h4 {[%clk 0:00:08]}  Rh3+ {[%clk 0:00:09]} 42. Kg2 {[%clk 0:00:07]}  Rxh4 {[%clk 0:00:10]} 43. Rd7 {[%clk 0:00:08]}  Rg4+ {[%clk 0:00:10]} 44. Kf2 {[%clk 0:00:07]}  b5 {[%clk 0:00:03]} 45. Rxh7 {[%clk 0:00:07]}  Ke4 {[%clk 0:00:03]} 46. Rh6 {[%clk 0:00:07]}  Na5 {[%clk 0:00:03]} 47. Rxa6 {[%clk 0:00:06]}  Nc4 {[%clk 0:00:04]} 48. Ra8 {[%clk 0:00:06]}  f3 {[%clk 0:00:04]} 49. Rb8 {[%clk 0:00:05]}  Rg2+ {[%clk 0:00:04]} 50. Kf1 {[%clk 0:00:05]}  Nd2+ {[%clk 0:00:04]} 51. Ke1 {[%clk 0:00:05]}  Re2+ {[%clk 0:00:04]} 52. Kd1 {[%clk 0:00:06]}  Nb3 {[%clk 0:00:04]} 53. Bb6 {[%clk 0:00:05]}  Nd4 {[%clk 0:00:04]} 54. Rf8 {[%clk 0:00:04]}  Rg2 {[%clk 0:00:03]} 55. Bxd4 {[%clk 0:00:04]}  exd4 {[%clk 0:00:03]} 56. Ke1 {[%clk 0:00:03]}  b4 {[%clk 0:00:03]} 57. Rb8 {[%clk 0:00:03]}  Ke3 {[%clk 0:00:03]} 58. Re8+ {[%clk 0:00:02]}  Kd3 {[%clk 0:00:03]} 59. Rb8 {[%clk 0:00:02]}  Re2+ {[%clk 0:00:03]} 60. Kf1 {[%clk 0:00:01]}  Kc3 {[%clk 0:00:03]} 61. Rc8+ {[%clk 0:00:01]}  Kb2 {[%clk 0:00:04]} 62. Rd8 {[%clk 0:00:02]}  b3 {[%clk 0:00:04]} 63. Rxd4 {[%clk 0:00:02]}  Kc3 {[%clk 0:00:03]} 64. Rf4 {[%clk 0:00:02]}  Re3 {[%clk 0:00:04]} 65. Rf8 {[%clk 0:00:02]}  b2 {[%clk 0:00:04]} 66. Rc8+ {[%clk 0:00:02]}  Kd2 {[%clk 0:00:04]} 67. Rb8 {[%clk 0:00:03]}  Kc2 {[%clk 0:00:04]} 68. Kf2 {[%clk 0:00:03]}  Rb3 {[%clk 0:00:04]} 69. Rc8+ {[%clk 0:00:03]}  Kd3 {[%clk 0:00:04]} 0-1


[Site "https://www.chess.com"]

[Event "Titled Tuesday Blitz February 21 Late 2023"]
[White "Skvortsov, Andrei"]
[Black "Grigoriants, Sergey"]
[WhiteFideId "24108600"]
[BlackFideId "4130804"]
[WhiteElo "2313"]
[BlackElo "2562"]
[Result "1/2-1/2"]
[Round "10"]
[TimeControl "180+2"]
[Date "2023.02.21"]
[WhiteClock "0:00:06"]
[BlackClock "0:00:21"]

1. e4 {[%clk 0:03:00]}  c6 {[%clk 0:02:56]} 2. d4 {[%clk 0:02:57]}  d5 {[%clk 0:02:56]} 3. e5 {[%clk 0:02:52]}  Bf5 {[%clk 0:02:55]} 4. c4 {[%clk 0:02:52]}  e6 {[%clk 0:02:55]} 5. Nc3 {[%clk 0:02:53]}  Ne7 {[%clk 0:02:55]} 6. a3 {[%clk 0:02:53]}  Nd7 {[%clk 0:02:52]} 7. Nf3 {[%clk 0:02:51]}  h6 {[%clk 0:02:51]} 8. cxd5 {[%clk 0:02:45]}  Nxd5 {[%clk 0:02:49]} 9. Bd3 {[%clk 0:02:41]}  Nxc3 {[%clk 0:02:35]} 10. bxc3 {[%clk 0:02:42]}  Bxd3 {[%clk 0:02:35]} 11. Qxd3 {[%clk 0:02:42]}  Be7 {[%clk 0:02:36]} 12. O-O {[%clk 0:02:42]}  O-O {[%clk 0:02:35]} 13. Rb1 {[%clk 0:02:42]}  b5 {[%clk 0:02:34]} 14. c4 {[%clk 0:02:41]}  a6 {[%clk 0:02:34]} 15. Qe4 {[%clk 0:02:39]}  Rc8 {[%clk 0:02:30]} 16. Qc2 {[%clk 0:02:21]}  Nb6 {[%clk 0:02:29]} 17. c5 {[%clk 0:02:14]}  Nc4 {[%clk 0:02:23]} 18. a4 {[%clk 0:02:12]}  Qd5 {[%clk 0:02:22]} 19. Qc3 {[%clk 0:02:07]}  Rfd8 {[%clk 0:02:20]} 20. Ra1 {[%clk 0:01:54]}  Rd7 {[%clk 0:02:11]} 21. h3 {[%clk 0:01:53]}  f6 {[%clk 0:02:07]} 22. axb5 {[%clk 0:01:52]}  axb5 {[%clk 0:02:07]} 23. exf6 {[%clk 0:01:46]}  Bxf6 {[%clk 0:02:07]} 24. Be3 {[%clk 0:01:46]}  e5 {[%clk 0:01:59]} 25. Rad1 {[%clk 0:01:00]}  Nxe3 {[%clk 0:01:30]} 26. fxe3 {[%clk 0:00:58]}  exd4 {[%clk 0:01:30]} 27. Nxd4 {[%clk 0:00:57]}  Re8 {[%clk 0:01:17]} 28. Kh1 {[%clk 0:00:49]}  Qe4 {[%clk 0:01:08]} 29. Rf3 {[%clk 0:00:42]}  Kh7 {[%clk 0:01:02]} 30. Qb3 {[%clk 0:00:10]}  Bxd4 {[%clk 0:00:48]} 31. exd4 {[%clk 0:00:11]}  Rxd4 {[%clk 0:00:49]} 32. Rxd4 {[%clk 0:00:06]}  Qxd4 {[%clk 0:00:49]} 33. Qf7 {[%clk 0:00:05]}  Qe4 {[%clk 0:00:44]} 34. Rg3 {[%clk 0:00:03]}  Qe1+ {[%clk 0:00:30]} 35. Kh2 {[%clk 0:00:03]}  Qe5 {[%clk 0:00:31]} 36. Qg6+ {[%clk 0:00:04]}  Kh8 {[%clk 0:00:30]} 37. Qxc6 {[%clk 0:00:05]}  b4 {[%clk 0:00:27]} 38. Qd6 {[%clk 0:00:05]}  Qxd6 {[%clk 0:00:20]} 39. cxd6 {[%clk 0:00:06]}  Rd8 {[%clk 0:00:21]} 40. Rb3 {[%clk 0:00:06]}  Rxd6 {[%clk 0:00:21]} 41. Rxb4 {[%clk 0:00:06]} 1/2-1/2


[Site "https://www.chess.com"]

[Event "Titled Tuesday Blitz February 21 Late 2023"]
[White "Golubka, Petro"]
[Black "Sadovsky, Artem"]
[WhiteFideId "14114224"]
[BlackFideId "4155840"]
[WhiteElo "2371"]
[BlackElo "2276"]
[Result "1-0"]
[Round "10"]
[TimeControl "180+2"]
[Date "2023.02.21"]
[WhiteClock "0:01:16"]
[BlackClock "0:00:12"]

1. e4 {[%clk 0:02:57]}  g6 {[%clk 0:02:51]} 2. g3 {[%clk 0:02:52]}  d5 {[%clk 0:02:42]} 3. Bg2 {[%clk 0:02:53]}  dxe4 {[%clk 0:02:42]} 4. Bxe4 {[%clk 0:02:53]}  Nf6 {[%clk 0:02:42]} 5. Bg2 {[%clk 0:02:54]}  Bg7 {[%clk 0:02:43]} 6. Ne2 {[%clk 0:02:54]}  O-O {[%clk 0:02:43]} 7. Nbc3 {[%clk 0:02:55]}  e5 {[%clk 0:02:44]} 8. d3 {[%clk 0:02:52]}  Nc6 {[%clk 0:02:43]} 9. Be3 {[%clk 0:02:51]}  Be6 {[%clk 0:02:42]} 10. h3 {[%clk 0:02:49]}  Nd5 {[%clk 0:02:42]} 11. O-O {[%clk 0:02:48]}  f5 {[%clk 0:02:33]} 12. Bc5 {[%clk 0:02:41]}  Rf7 {[%clk 0:02:33]} 13. f4 {[%clk 0:02:38]}  b6 {[%clk 0:02:30]} 14. Bf2 {[%clk 0:02:37]}  Nce7 {[%clk 0:02:23]} 15. fxe5 {[%clk 0:02:35]}  Bxe5 {[%clk 0:02:10]} 16. Nd4 {[%clk 0:02:34]}  Bxd4 {[%clk 0:01:36]} 17. Bxd4 {[%clk 0:02:35]}  Nxc3 {[%clk 0:01:24]} 18. Bxc3 {[%clk 0:02:30]}  Bd5 {[%clk 0:01:24]} 19. Qe2 {[%clk 0:02:29]}  Nc6 {[%clk 0:01:17]} 20. Rae1 {[%clk 0:02:27]}  Bxg2 {[%clk 0:01:17]} 21. Qxg2 {[%clk 0:02:21]}  Qd7 {[%clk 0:01:17]} 22. Re5 {[%clk 0:02:14]}  Re8 {[%clk 0:01:07]} 23. Rd5 {[%clk 0:02:12]}  Qc8 {[%clk 0:00:59]} 24. h4 {[%clk 0:02:04]}  f4 {[%clk 0:00:54]} 25. Rxf4 {[%clk 0:02:01]}  Rxf4 {[%clk 0:00:54]} 26. gxf4 {[%clk 0:02:01]}  Ne7 {[%clk 0:00:55]} 27. Re5 {[%clk 0:01:49]}  Nf5 {[%clk 0:00:55]} 28. h5 {[%clk 0:01:46]}  Rxe5 {[%clk 0:00:53]} 29. Bxe5 {[%clk 0:01:45]}  Qe6 {[%clk 0:00:54]} 30. hxg6 {[%clk 0:01:36]}  hxg6 {[%clk 0:00:54]} 31. Qa8+ {[%clk 0:01:34]}  Kf7 {[%clk 0:00:47]} 32. Qxa7 {[%clk 0:01:34]}  Ne3 {[%clk 0:00:40]} 33. Qxc7+ {[%clk 0:01:35]}  Ke8 {[%clk 0:00:40]} 34. Qa7 {[%clk 0:01:35]}  Qg4+ {[%clk 0:00:14]} 35. Kf2 {[%clk 0:01:32]}  Nd1+ {[%clk 0:00:13]} 36. Ke1 {[%clk 0:01:31]}  Qg1+ {[%clk 0:00:12]} 37. Kd2 {[%clk 0:01:31]}  Qf2+ {[%clk 0:00:10]} 38. Kxd1 {[%clk 0:01:30]}  Qf1+ {[%clk 0:00:10]} 39. Kd2 {[%clk 0:01:30]}  Qf2+ {[%clk 0:00:11]} 40. Kc3 {[%clk 0:01:29]}  Qc5+ {[%clk 0:00:12]} 41. Kb3 {[%clk 0:01:29]}  Qb5+ {[%clk 0:00:12]} 42. Ka3 {[%clk 0:01:29]}  Qc5+ {[%clk 0:00:13]} 43. b4 {[%clk 0:01:29]}  Qxc2 {[%clk 0:00:04]} 44. Qa8+ {[%clk 0:01:24]}  Kd7 {[%clk 0:00:04]} 45. Qd5+ {[%clk 0:01:24]}  Ke7 {[%clk 0:00:04]} 46. Qd6+ {[%clk 0:01:22]}  Ke8 {[%clk 0:00:05]} 47. Qxg6+ {[%clk 0:01:20]}  Kd7 {[%clk 0:00:04]} 48. Qf7+ {[%clk 0:01:18]}  Kc6 {[%clk 0:00:04]} 49. Qc4+ {[%clk 0:01:17]}  Kb7 {[%clk 0:00:05]} 50. Qxc2 {[%clk 0:01:15]}  Ka6 {[%clk 0:00:06]} 51. Kb3 {[%clk 0:01:16]}  b5 {[%clk 0:00:05]} 52. a3 {[%clk 0:01:17]}  Kb7 {[%clk 0:00:06]} 53. a4 {[%clk 0:01:18]}  Ka6 {[%clk 0:00:06]} 54. Ka3 {[%clk 0:01:18]}  Kb7 {[%clk 0:00:07]} 55. f5 {[%clk 0:01:18]}  Ka7 {[%clk 0:00:08]} 56. f6 {[%clk 0:01:18]}  Ka8 {[%clk 0:00:09]} 57. f7 {[%clk 0:01:18]}  Kb7 {[%clk 0:00:10]} 58. axb5 {[%clk 0:01:18]}  Kb6 {[%clk 0:00:10]} 59. Qc6+ {[%clk 0:01:17]}  Ka7 {[%clk 0:00:11]} 60. b6+ {[%clk 0:01:17]}  Ka6 {[%clk 0:00:11]} 61. b5+ {[%clk 0:01:16]}  Ka5 {[%clk 0:00:12]} 62. Bc3# {[%clk 0:01:16]} 1-0


[Site "https://www.chess.com"]

[Event "Titled Tuesday Blitz February 21 Late 2023"]
[White "Hambleton, Aman"]
[Black "Prydun, Andriy"]
[WhiteFideId "2606577"]
[BlackFideId "14145898"]
[WhiteElo "2420"]
[BlackElo "2134"]
[Result "0-1"]
[Round "10"]
[TimeControl "180+2"]
[Date "2023.02.21"]
[WhiteClock "0:00:01"]
[BlackClock "0:00:03"]

1. d4 {[%clk 0:03:00]}  Nf6 {[%clk 0:02:59]} 2. Bf4 {[%clk 0:03:00]}  e6 {[%clk 0:02:57]} 3. e3 {[%clk 0:03:01]}  Bd6 {[%clk 0:02:57]} 4. Be5 {[%clk 0:02:56]}  Nc6 {[%clk 0:02:56]} 5. Nf3 {[%clk 0:02:57]}  O-O {[%clk 0:02:55]} 6. Bd3 {[%clk 0:02:51]}  a6 {[%clk 0:02:53]} 7. Bxd6 {[%clk 0:02:46]}  cxd6 {[%clk 0:02:53]} 8. e4 {[%clk 0:02:47]}  b5 {[%clk 0:02:51]} 9. c3 {[%clk 0:02:38]}  Bb7 {[%clk 0:02:50]} 10. Nbd2 {[%clk 0:02:37]}  Rb8 {[%clk 0:02:05]} 11. O-O {[%clk 0:02:36]}  Qe7 {[%clk 0:02:00]} 12. Re1 {[%clk 0:02:35]}  Rfc8 {[%clk 0:02:00]} 13. a4 {[%clk 0:02:20]}  b4 {[%clk 0:02:00]} 14. c4 {[%clk 0:02:20]}  e5 {[%clk 0:01:57]} 15. d5 {[%clk 0:02:18]}  Nd8 {[%clk 0:01:49]} 16. a5 {[%clk 0:02:03]}  Ba8 {[%clk 0:01:49]} 17. Nb3 {[%clk 0:00:38]}  Nb7 {[%clk 0:01:48]} 18. Nfd2 {[%clk 0:00:35]}  Nc5 {[%clk 0:01:47]} 19. Bf1 {[%clk 0:00:31]}  g6 {[%clk 0:01:26]} 20. g3 {[%clk 0:00:30]}  Qd8 {[%clk 0:00:57]} 21. h4 {[%clk 0:00:25]}  Qc7 {[%clk 0:00:49]} 22. Kg2 {[%clk 0:00:12]}  Qa7 {[%clk 0:00:49]} 23. Qf3 {[%clk 0:00:10]}  Kg7 {[%clk 0:00:48]} 24. Qe3 {[%clk 0:00:10]}  Ng4 {[%clk 0:00:45]} 25. Qe2 {[%clk 0:00:06]}  Nf6 {[%clk 0:00:43]} 26. f3 {[%clk 0:00:05]}  Nh5 {[%clk 0:00:40]} 27. Qe3 {[%clk 0:00:04]}  Rf8 {[%clk 0:00:29]} 28. Rad1 {[%clk 0:00:03]}  Rbc8 {[%clk 0:00:22]} 29. Nxc5 {[%clk 0:00:02]}  Qxc5 {[%clk 0:00:20]} 30. Nb3 {[%clk 0:00:02]}  Qxe3 {[%clk 0:00:15]} 31. Rxe3 {[%clk 0:00:02]}  Rc7 {[%clk 0:00:15]} 32. Rc1 {[%clk 0:00:02]}  f5 {[%clk 0:00:12]} 33. Ree1 {[%clk 0:00:02]}  fxe4 {[%clk 0:00:11]} 34. fxe4 {[%clk 0:00:02]}  Nf6 {[%clk 0:00:11]} 35. Bd3 {[%clk 0:00:01]}  Ng4 {[%clk 0:00:11]} 36. Re2 {[%clk 0:00:02]}  Rcc8 {[%clk 0:00:04]} 37. Rf1 {[%clk 0:00:02]}  Rxf1 {[%clk 0:00:04]} 38. Kxf1 {[%clk 0:00:03]}  Rf8+ {[%clk 0:00:04]} 39. Kg2 {[%clk 0:00:04]}  Rc8 {[%clk 0:00:03]} 40. Re1 {[%clk 0:00:02]}  Bb7 {[%clk 0:00:03]} 41. Bf1 {[%clk 0:00:01]}  Nf6 {[%clk 0:00:03]} 0-1


[Site "https://www.chess.com"]

[Event "Titled Tuesday Blitz February 21 Late 2023"]
[White "Bilych, Olexiy"]
[Black "Zochowski, Kacper"]
[WhiteFideId "14156504"]
[BlackFideId "1125494"]
[WhiteElo "2441"]
[BlackElo "2262"]
[Result "1-0"]
[Round "10"]
[TimeControl "180+2"]
[Date "2023.02.21"]
[WhiteClock "0:00:12"]
[BlackClock "0:01:12"]

1. h4 {[%clk 0:03:00]}  h5 {[%clk 0:02:57]} 2. e4 {[%clk 0:03:00]}  e5 {[%clk 0:02:57]} 3. d4 {[%clk 0:02:54]}  d6 {[%clk 0:02:56]} 4. Nf3 {[%clk 0:02:52]}  Bg4 {[%clk 0:02:55]} 5. dxe5 {[%clk 0:02:52]}  Bxf3 {[%clk 0:02:56]} 6. Qxf3 {[%clk 0:02:52]}  dxe5 {[%clk 0:02:57]} 7. Bc4 {[%clk 0:02:51]}  Nf6 {[%clk 0:02:57]} 8. Bg5 {[%clk 0:02:49]}  Nbd7 {[%clk 0:02:57]} 9. Nc3 {[%clk 0:02:49]}  c6 {[%clk 0:02:57]} 10. O-O {[%clk 0:02:44]}  Be7 {[%clk 0:02:53]} 11. Ne2 {[%clk 0:02:42]}  O-O {[%clk 0:02:40]} 12. Ng3 {[%clk 0:02:40]}  g6 {[%clk 0:02:41]} 13. Rad1 {[%clk 0:02:10]}  Ng4 {[%clk 0:02:33]} 14. Nf5 {[%clk 0:01:46]}  Bxg5 {[%clk 0:02:23]} 15. hxg5 {[%clk 0:01:42]}  Qxg5 {[%clk 0:02:22]} 16. Rxd7 {[%clk 0:01:34]}  gxf5 {[%clk 0:02:22]} 17. exf5 {[%clk 0:01:24]}  b5 {[%clk 0:01:58]} 18. Bb3 {[%clk 0:01:20]}  Rfd8 {[%clk 0:01:58]} 19. Rxf7 {[%clk 0:01:12]}  Qh4 {[%clk 0:01:59]} 20. Qh3 {[%clk 0:01:09]}  Qxh3 {[%clk 0:01:52]} 21. gxh3 {[%clk 0:01:10]}  Nh6 {[%clk 0:01:53]} 22. Rf6+ {[%clk 0:01:08]}  Kh7 {[%clk 0:01:53]} 23. Rxc6 {[%clk 0:01:05]}  Nxf5 {[%clk 0:01:53]} 24. c3 {[%clk 0:01:02]}  Rd2 {[%clk 0:01:53]} 25. Rd1 {[%clk 0:00:56]}  Rad8 {[%clk 0:01:49]} 26. Rxd2 {[%clk 0:00:51]}  Rxd2 {[%clk 0:01:50]} 27. Rc5 {[%clk 0:00:51]}  Nh4 {[%clk 0:01:50]} 28. Rxb5 {[%clk 0:00:42]}  Kh6 {[%clk 0:01:50]} 29. Bd5 {[%clk 0:00:38]}  Rd1+ {[%clk 0:01:38]} 30. Kh2 {[%clk 0:00:37]}  Rd2 {[%clk 0:01:39]} 31. Kg3 {[%clk 0:00:33]}  Kg5 {[%clk 0:01:39]} 32. Be4 {[%clk 0:00:31]}  Re2 {[%clk 0:01:21]} 33. Rxe5+ {[%clk 0:00:14]}  Kf6 {[%clk 0:01:22]} 34. Re8 {[%clk 0:00:14]}  Kg5 {[%clk 0:01:13]} 35. f4+ {[%clk 0:00:14]}  Kf6 {[%clk 0:01:13]} 36. Kxh4 {[%clk 0:00:14]}  Rxb2 {[%clk 0:01:13]} 37. Bd5 {[%clk 0:00:12]}  Rf2 {[%clk 0:01:11]} 38. Bb3 {[%clk 0:00:12]}  Rxf4+ {[%clk 0:01:11]} 39. Kxh5 {[%clk 0:00:13]}  Kg7 {[%clk 0:01:11]} 40. Rg8+ {[%clk 0:00:12]}  Kh7 {[%clk 0:01:11]} 41. Rg4 {[%clk 0:00:12]}  Rf3 {[%clk 0:01:11]} 42. Kh4 {[%clk 0:00:12]}  a5 {[%clk 0:01:11]} 43. Ra4 {[%clk 0:00:11]}  Rf5 {[%clk 0:01:11]} 44. Bc2 {[%clk 0:00:11]}  Kh8 {[%clk 0:01:12]} 45. Bxf5 {[%clk 0:00:12]} 1-0


[Site "https://www.chess.com"]

[Event "Titled Tuesday Blitz February 21 Late 2023"]
[White "Ezat, Mohamed"]
[Black "Preotu, Razvan"]
[WhiteFideId "10600906"]
[BlackFideId "2613280"]
[WhiteElo "2402"]
[BlackElo "2475"]
[Result "1-0"]
[Round "10"]
[TimeControl "180+2"]
[Date "2023.02.21"]
[WhiteClock "0:01:40"]
[BlackClock "0:00:32"]

1. d4 {[%clk 0:03:00]}  Nf6 {[%clk 0:02:57]} 2. c4 {[%clk 0:03:01]}  g6 {[%clk 0:02:57]} 3. Nc3 {[%clk 0:02:59]}  d5 {[%clk 0:02:58]} 4. Bf4 {[%clk 0:02:58]}  Bg7 {[%clk 0:02:57]} 5. Rc1 {[%clk 0:02:57]}  Nh5 {[%clk 0:02:53]} 6. Bg5 {[%clk 0:02:53]}  h6 {[%clk 0:02:44]} 7. Bh4 {[%clk 0:02:53]}  c5 {[%clk 0:02:44]} 8. e3 {[%clk 0:02:52]}  cxd4 {[%clk 0:02:35]} 9. exd4 {[%clk 0:02:44]}  dxc4 {[%clk 0:02:31]} 10. Bxc4 {[%clk 0:02:35]}  O-O {[%clk 0:02:22]} 11. Nge2 {[%clk 0:02:32]}  Nc6 {[%clk 0:02:20]} 12. d5 {[%clk 0:02:32]}  Ne5 {[%clk 0:02:18]} 13. Bb3 {[%clk 0:02:31]}  Bf5 {[%clk 0:02:05]} 14. O-O {[%clk 0:02:30]}  Nd3 {[%clk 0:02:05]} 15. Rc2 {[%clk 0:02:30]}  Nc5 {[%clk 0:01:48]} 16. Rd2 {[%clk 0:02:30]}  g5 {[%clk 0:01:27]} 17. Ng3 {[%clk 0:02:22]}  Nxg3 {[%clk 0:01:24]} 18. Bxg3 {[%clk 0:02:22]}  Nxb3 {[%clk 0:01:23]} 19. axb3 {[%clk 0:02:19]}  Qb6 {[%clk 0:01:12]} 20. Re1 {[%clk 0:02:18]}  Bf6 {[%clk 0:01:12]} 21. Be5 {[%clk 0:02:17]}  Rfd8 {[%clk 0:00:58]} 22. d6 {[%clk 0:02:17]}  Bxe5 {[%clk 0:00:37]} 23. Rxe5 {[%clk 0:02:15]}  Be6 {[%clk 0:00:36]} 24. dxe7 {[%clk 0:02:15]}  Rxd2 {[%clk 0:00:32]} 25. Qxd2 {[%clk 0:02:15]}  Qc7 {[%clk 0:00:33]} 26. Rxg5+ {[%clk 0:01:42]}  hxg5 {[%clk 0:00:34]} 27. Qxg5+ {[%clk 0:01:42]}  Kh7 {[%clk 0:00:32]} 28. Ne4 {[%clk 0:01:40]} 1-0


[Site "https://www.chess.com"]